bitfinex/quotes_SOLUSD_20251212
["timestamp","ask_amount","ask_price","bid_price","bid_amount"]
[1765533804357,7.23469821,138.23,138.21,7.92]
[1765533804533,7.92469821,138.23,138.21,7.92]
[1765533805484,0.69,138.23,138.21,7.92]
[1765533805973,11.1,138.22,138.21,7.92]
[1765533806476,11.79,138.22,138.21,7.92]
[1765533806776,11.1,138.22,138.21,7.92]
[1765533806981,11.1,138.22,138.21,17.99088594]
[1765533807179,7.92299784,138.26,138.21,17.99088594]
[1765533807478,7.92299784,138.26,138.24,2.81551947]
[1765533807479,0.69,138.26,138.24,2.81551947]
[1765533807659,7.92285997,138.26,138.24,10.73551947]
[1765533807866,7.92285997,138.26,138.24,7.92]
[1765533810177,7.23118085,138.29,138.25,2.83551947]
[1765533810352,7.23118085,138.29,138.27,2.81551947]
[1765533810684,7.92118085,138.29,138.27,10.73551947]
[1765533811056,7.92118085,138.29,138.27,7.92]
[1765533811258,7.92118085,138.29,138.27,10.73551947]
[1765533812758,0.69,138.28,138.27,7.92]
[1765533814882,7.92170378,138.28,138.27,7.92]
[1765533821483,0.69,138.3,138.27,7.92]
[1765533821674,0.69,138.29,138.27,7.92]
[1765533823504,0.69,138.29,138.27,15.15213033]
[1765533827298,7.23070393,138.3,138.27,15.17213033]
[1765533827502,7.89070393,138.3,138.27,15.17213033]
[1765533827702,7.89070393,138.3,138.27,15.15213033]
[1765533828298,0.66,138.3,138.27,15.17213033]
[1765533828679,0.66,138.3,138.27,7.92]
[1765533829410,7.89098584,138.3,138.27,7.92]
[1765533829795,7.23098584,138.3,138.27,7.92]
[1765533829999,0.66,138.29,138.27,7.92]
[1765533841042,7.89098584,138.3,138.27,19.56614297]
[1765533841444,0.66,138.29,138.27,12.31397191]
[1765533841748,0.66,138.29,138.27,7.92]
[1765533841930,0.66,138.29,138.27,12.31397191]
[1765533843622,0.66,138.29,138.27,7.92]
[1765533844243,7.89126924,138.29,138.27,7.92]
[1765533845316,0.66,138.28,138.27,7.92]
[1765533845833,0.66,138.28,138.23,13.0670912]
[1765533846054,0.66,138.28,138.25,7.92]
[1765533846833,0.94432314,138.28,138.25,7.92]
[1765533847140,11.1,138.27,138.23,28.2011343]
[1765533847354,18.99274373,138.27,138.23,28.2011343]
[1765533847520,0.66,138.26,138.23,28.2011343]
[1765533847841,11.1,138.25,138.23,28.2011343]
[1765533848445,11.1,138.25,138.24,4.41397191]
[1765533849433,11.1,138.25,138.24,11.6477682]
[1765533850750,12.28724496,138.25,138.21,15.1550832]
[1765533850954,0.66,138.24,138.21,15.1550832]
[1765533852334,7.8929661,138.26,138.22,7.25455784]
[1765533852536,7.8929661,138.26,138.23,7.92]
[1765533853456,0.66,138.25,138.23,7.92]
[1765533855340,0.66,138.27,138.23,19.56820978]
[1765533856059,7.89232007,138.27,138.23,15.15423787]
[1765533856563,11.76,138.26,138.23,15.15423787]
[1765533857055,0.66,138.25,138.23,15.15423787]
[1765533858852,11.1,138.26,138.23,37.63400881]
[1765533859050,11.1,138.26,138.24,4.41397191]
[1765533859234,11.1,138.26,138.24,0.02]
[1765533859867,11.1,138.26,138.23,37.65400881]
[1765533861161,11.76,138.26,138.23,19.56820978]
[1765533861363,18.99287764,138.26,138.23,19.54814291]
[1765533861569,18.99287764,138.26,138.23,19.56814291]
[1765533862060,0.66,138.25,138.23,7.92]
[1765533862240,11.1,138.24,138.23,7.92]
[1765533862770,11.76,138.24,138.23,7.92]
[1765533863467,11.1,138.24,138.23,19.57019115]
[1765533863669,11.1,138.24,138.23,7.92]
[1765533864244,11.1,138.24,138.23,19.57019115]
[1765533866665,11.1,138.24,138.23,7.92]
[1765533867776,11.76,138.24,138.23,7.92]
[1765533868774,11.1,138.24,138.23,7.92]
[1765533870583,11.1,138.24,138.23,15.15431961]
[1765533874373,11.1,138.24,138.23,19.55019115]
[1765533875585,11.1,138.24,138.23,15.15431961]
[1765533875782,11.76,138.24,138.23,15.15431961]
[1765533876687,11.1,138.24,138.23,15.15431961]
[1765533880580,11.1,138.24,138.23,26.25431961]
[1765533881403,11.1,138.24,138.23,15.15431961]
[1765533882678,11.76,138.24,138.23,7.92]
[1765533884397,18.99379629,138.24,138.23,7.92]
[1765533884895,7.89379629,138.24,138.2,13.2697713]
[1765533885102,11.76,138.23,138.21,7.92]
[1765533885301,4.39587154,138.22,138.19,7.92]
[1765533885484,5.34019468,138.21,138.16,13.27216251]
[1765533885690,5.34019468,138.21,138.17,7.92]
[1765533885904,0.66,138.2,138.17,7.92]
[1765533886213,7.89606256,138.2,138.17,7.92]
[1765533886518,0.66,138.2,138.17,15.15735322]
[1765533886677,0.28432314,138.21,138.17,15.15735322]
[1765533886876,18.33505393,138.22,138.18,4.41587154]
[1765533887085,0.72,138.21,138.19,7.92]
[1765533891137,7.95544984,138.21,138.19,7.92]
[1765533891609,0.72,138.2,138.19,7.92]
[1765533892190,0.72,138.2,138.17,7.92]
[1765533892387,7.23641363,138.19,138.17,7.92]
[1765533892812,0.72,138.18,138.17,7.92]
[1765533894711,11.82,138.19,138.17,7.92]
[1765533895086,11.1,138.19,138.17,19.57322987]
[1765533895519,11.1,138.19,138.18,0.02]
[1765533895713,11.1,138.19,138.17,19.57322987]
[1765533896014,11.1,138.19,138.18,4.41942709]
[1765533896213,7.23476331,138.23,138.18,0.02]
[1765533896422,11.82,138.22,138.19,4.39942709]
[1765533896718,19.05489365,138.22,138.2,7.92]
[1765533898423,0.72,138.21,138.2,7.92]
[1765533899894,7.95536647,138.21,138.2,7.92]
[1765533900314,0.72,138.21,138.2,7.92]
[1765533903123,19.05510361,138.22,138.2,7.92]
[1765533903327,0.72,138.21,138.2,7.92]
[1765533913450,0.72,138.24,138.2,17.99104495]
[1765533913619,7.23337563,138.25,138.21,2.81538483]
[1765533913821,0.72,138.23,138.21,2.81538483]
[1765533914246,0.72,138.23,138.2,17.99104495]
[1765533915438,0.72,138.23,138.2,15.17566012]
[1765533915641,0.72,138.23,138.2,17.99104495]
[1765533916251,0.72,138.23,138.2,7.92]
[1765533917368,7.95448696,138.23,138.2,7.92]
[1765533917844,0.66,138.22,138.2,7.92]
[1765533920636,0.66,138.22,138.2,10.73538483]
[1765533921033,11.1,138.23,138.21,2.83538483]
[1765533921245,11.1,138.23,138.22,10.05022783]
[1765533921850,11.76,138.27,138.22,28.15733533]
[1765533922162,0.66,138.26,138.24,2.81538483]
[1765533923236,0.66,138.26,138.24,10.04908416]
[1765533923429,11.1,138.27,138.24,10.04908416]
[1765533923645,0.66,138.27,138.25,2.81538483]
[1765533923857,0.66,138.27,138.26,7.92]
[1765533926466,7.8922268,138.27,138.26,7.92]
[1765533929167,0.66,138.27,138.26,7.92]
[1765533930940,7.8922268,138.27,138.26,7.92]
[1765533931372,0.66,138.27,138.26,7.92]
[1765533932168,7.8922268,138.27,138.26,7.92]
[1765533935457,11.1,138.26,138.24,7.92]
[1765533935779,11.76,138.26,138.24,7.92]
[1765533935976,0.66,138.25,138.24,7.92]
[1765533941581,11.1,138.26,138.24,17.96678107]
[1765533941768,11.76,138.26,138.24,17.96678107]
[1765533942379,11.1,138.26,138.24,17.96678107]
[1765533942582,11.1,138.26,138.25,2.81299019]
[1765533947490,11.1,138.26,138.25,10.06626324]
[1765533948374,11.1,138.26,138.25,10.04626324]
[1765533954306,11.81,138.26,138.24,15.15332805]
[1765533956379,11.1,138.26,138.24,15.15332805]
[1765533956712,11.81,138.26,138.24,15.15332805]
[1765533959513,11.1,138.26,138.24,15.17332805]
[1765533959686,11.81,138.26,138.24,15.15332805]
[1765533962104,11.81,138.26,138.24,19.54877056]
[1765533962614,11.81,138.26,138.24,15.15332805]
[1765533962792,11.81,138.26,138.24,19.54877056]
[1765533963711,11.1,138.26,138.24,19.56877056]
[1765533963905,11.1,138.26,138.25,0.02]
[1765533964208,11.1,138.26,138.24,19.54877056]
[1765533964407,11.1,138.26,138.25,4.39544251]
[1765533964608,11.1,138.26,138.25,4.41544251]
[1765533965114,11.1,138.26,138.25,11.62871556]
[1765533967611,11.1,138.26,138.25,11.64871556]
[1765533968917,11.1,138.26,138.25,11.62871556]
[1765533969402,11.1,138.26,138.25,11.64871556]
[1765533970013,11.1,138.26,138.25,11.62871556]
[1765533970423,11.1,138.26,138.25,11.64871556]
[1765533970727,11.1,138.26,138.25,11.62871556]
[1765533972306,4.39544251,138.31,138.25,11.62871556]
[1765533972506,11.1,138.26,138.25,11.62871556]
[1765533972722,11.1,138.26,138.25,19.54871556]
[1765533973201,11.1,138.26,138.25,15.15327305]
[1765533973621,11.1,138.26,138.25,14.65327305]
[1765533973820,11.1,138.26,138.25,19.04871556]
[1765533974133,11.1,138.26,138.25,7.92]
[1765533975335,19.04274989,138.26,138.25,7.92]
[1765533975709,18.33274989,138.26,138.25,7.92]
[1765533978117,7.23274989,138.26,138.25,7.92]
[1765533978819,0.71,138.29,138.25,12.31544251]
[1765533980314,7.94141055,138.29,138.25,19.54856691]
[1765533983140,7.94141055,138.29,138.25,19.04856691]
[1765533983437,0.72,138.28,138.25,19.04856691]
[1765533991339,0.72,138.28,138.26,4.39544251]
[1765533991544,7.23067434,138.3,138.27,4.39544251]
[1765533991744,7.95067434,138.3,138.27,4.39544251]
[1765533992772,11.44478889,138.32,138.27,4.39544251]
[1765533992773,7.94994568,138.32,138.29,4.39544251]
[1765533993345,0.72,138.31,138.28,20.9670912]
[1765533993545,7.94930561,138.33,138.3,4.39544251]
[1765533993755,0.72,138.33,138.31,4.39544251]
[1765533994144,0.72,138.33,138.29,0.68]
[1765533994342,12.344589,138.33,138.28,25.36253371]
[1765533994656,30.41495889,138.33,138.28,25.36017896]
[1765533994850,0.72,138.32,138.28,25.36017896]
[1765533995051,0.72,138.32,138.28,20.9670912]
[1765533995252,0.72,138.32,138.28,25.36017896]
[1765533996069,0.72,138.32,138.28,20.9670912]
[1765533996846,7.2301352,138.31,138.28,32.59184236]
[1765533997052,7.9501352,138.31,138.28,32.59184236]
[1765533997254,0.72,138.3,138.28,28.1987546]
[1765533997454,0.72,138.31,138.29,4.39308776]
[1765533998847,2.2,138.3,138.28,28.1987546]
[1765533999048,2.2,138.3,138.28,32.59184236]
[1765534000285,2.2,138.3,138.28,28.1987546]
[1765534000487,2.2,138.3,138.28,32.59184236]
[1765534002688,2.2,138.3,138.29,5.07308776]
[1765534002888,2.2,138.3,138.29,12.30426861]
[1765534003282,2.2,138.3,138.29,11.62426861]
[1765534003594,2.92,138.3,138.29,4.39308776]
[1765534003825,2.2,138.3,138.28,33.27168358]
[1765534007100,2.2,138.3,138.29,4.39308776]
[1765534007988,2.2,138.3,138.29,11.62426861]
[1765534008507,2.2,138.3,138.29,4.39308776]
[1765534008811,2.2,138.3,138.28,28.87860074]
[1765534009012,0.69,138.29,138.28,7.92]
[1765534009317,2.2,138.29,138.28,7.92]
[1765534009509,2.2,138.29,138.28,12.99308776]
[1765534009717,2.2,138.29,138.28,12.31308776]
[1765534010214,2.2,138.29,138.28,20.22479154]
[1765534013706,2.89,138.33,138.28,38.30405101]
[1765534013897,2.2,138.32,138.31,4.39308776]
[1765534014218,2.89,138.32,138.31,12.31308776]
[1765534014417,2.2,138.32,138.31,12.31308776]
[1765534015225,2.89,138.32,138.31,12.31308776]
[1765534015419,2.2,138.32,138.31,12.99308776]
[1765534016222,2.2,138.32,138.31,15.8301352]
[1765534016423,2.2,138.32,138.31,20.22322296]
[1765534017502,2.2,138.35,138.31,51.34565216]
[1765534017699,2.2,138.35,138.34,4.39308776]
[1765534017900,0.69,138.37,138.34,12.31308776]
[1765534018214,0.69,138.37,138.35,4.39308776]
[1765534018416,0.69,138.37,138.36,7.92]
[1765534021228,7.91700007,138.37,138.36,7.92]
[1765534021905,28.79475489,138.37,138.34,7.92]
[1765534022106,0.69,138.36,138.34,7.92]
[1765534022527,0.69,138.36,138.31,13.0470912]
[1765534022741,2.81025464,138.34,138.31,7.92]
[1765534022935,5.01025464,138.33,138.31,7.92]
[1765534023132,2.2,138.32,138.31,7.92]
[1765534023442,2.89,138.32,138.31,7.92]
[1765534023643,10.11961249,138.32,138.31,7.92]
[1765534027625,2.2,138.32,138.31,7.92]
[1765534028024,2.2,138.32,138.31,18.64075978]
[1765534031060,2.2,138.34,138.31,18.64075978]
[1765534031248,0.69,138.37,138.33,2.81062458]
[1765534031456,7.22707596,138.37,138.34,10.73062458]
[1765534031769,5.70062458,138.36,138.34,7.92]
[1765534032156,0.69,138.35,138.34,7.92]
[1765534032761,7.91804481,138.35,138.34,7.92]
[1765534035648,7.91804481,138.35,138.32,7.92]
[1765534035848,0.69,138.34,138.32,7.92]
[1765534036668,7.91861091,138.34,138.32,7.92]
[1765534037452,7.93861091,138.34,138.32,7.92]
[1765534039663,0.71,138.33,138.32,7.92]
[1765534040065,7.93861091,138.34,138.32,7.92]
[1765534040575,2.2,138.33,138.32,7.92]
[1765534041560,2.91,138.33,138.32,7.92]
[1765534041777,5.72062458,138.33,138.3,7.92]
[1765534041952,0.71,138.32,138.3,7.92]
[1765534044679,0.71,138.32,138.3,8.62]
[1765534045050,0.71,138.32,138.3,7.92]
[1765534045481,2.2,138.31,138.3,7.92]
[1765534045776,2.2,138.31,138.26,0.7]
[1765534045777,2.81062458,138.31,138.26,0.7]
[1765534045975,2.81062458,138.29,138.26,7.92]
[1765534046389,0.71,138.28,138.26,7.92]
[1765534046794,7.94172043,138.28,138.26,7.92]
[1765534047492,0.71,138.27,138.26,7.92]
[1765534048873,7.9422268,138.27,138.26,7.92]
[1765534051658,2.2,138.28,138.26,8.62]
[1765534052082,2.2,138.28,138.27,3.51062458]
[1765534052284,7.22986473,138.32,138.27,10.74285138]
[1765534052590,7.93986473,138.32,138.29,2.81062458]
[1765534052790,0.71,138.31,138.3,7.92]
[1765534052998,2.2,138.3,138.28,7.92]
[1765534053491,2.91,138.3,138.28,7.92]
[1765534054198,10.14092542,138.3,138.28,7.92]
[1765534055497,2.2,138.3,138.28,7.92]
[1765534055694,2.2,138.3,138.29,0.7]
[1765534058305,2.2,138.3,138.29,10.74180543]
[1765534059085,33.92716701,138.36,138.29,26.00913297]
[1765534059300,10.74891838,138.35,138.3,3.51062458]
[1765534059603,10.74891838,138.35,138.31,7.92]
[1765534059810,10.74891838,138.35,138.31,8.62]
[1765534059811,0.71,138.34,138.31,8.62]
[1765534060202,7.93901942,138.34,138.31,8.62]
[1765534064330,2.2,138.33,138.31,8.62]
[1765534064534,2.2,138.32,138.31,8.62]
[1765534067633,2.2,138.32,138.31,11.43077435]
[1765534067840,2.2,138.32,138.31,18.66090955]
[1765534069006,2.2,138.32,138.31,11.43077435]
[1765534070126,2.2,138.32,138.31,18.66090955]
[1765534071750,2.2,138.32,138.31,11.43077435]
[1765534072210,2.2,138.32,138.31,18.66090955]
[1765534072840,2.2,138.32,138.31,8.62]
[1765534074016,2.2,138.32,138.31,18.66090955]
[1765534075014,2.2,138.32,138.31,11.43077435]
[1765534075234,2.2,138.32,138.31,8.62]
[1765534076763,2.2,138.32,138.31,18.66090955]
[1765534078364,2.2,138.32,138.31,8.62]
[1765534078768,2.2,138.32,138.31,15.8501352]
[1765534079063,2.2,138.32,138.31,18.66090955]
[1765534081438,2.92,138.32,138.31,7.92]
[1765534082060,2.2,138.32,138.31,7.92]
[1765534082765,2.92,138.32,138.31,7.92]
[1765534083662,2.2,138.32,138.31,7.92]
[1765534086180,2.92,138.32,138.31,7.92]
[1765534086877,2.92,138.32,138.29,20.97803529]
[1765534086878,10.14961249,138.32,138.29,13.0470912]
[1765534087052,0.72,138.31,138.3,7.92]
[1765534089074,7.9501352,138.31,138.3,7.92]
[1765534090361,7.9501352,138.31,138.27,0.7]
[1765534090563,0.72,138.3,138.28,8.62]
[1765534091079,0.72,138.3,138.28,7.92]
[1765534091869,0.72,138.3,138.28,8.62]
[1765534092578,7.95080983,138.3,138.28,7.92]
[1765534093787,0.72,138.29,138.28,7.92]
[1765534094358,7.95080983,138.3,138.28,7.92]
[1765534095578,0.72,138.29,138.28,7.92]
[1765534095767,7.23080983,138.3,138.28,7.92]
[1765534095968,7.95080983,138.3,138.28,7.92]
[1765534096682,0.69,138.29,138.28,7.92]
[1765534098696,7.92118085,138.29,138.28,7.92]
[1765534101907,7.92118085,138.29,138.26,0.71]
[1765534102113,0.66,138.28,138.26,7.92]
[1765534102415,2.86,138.28,138.26,7.92]
[1765534103008,0.66,138.27,138.26,7.92]
[1765534103316,10.09212335,138.28,138.26,7.92]
[1765534104203,0.66,138.27,138.26,7.92]
[1765534104899,9.43212335,138.28,138.26,7.92]
[1765534105098,10.09212335,138.28,138.26,7.92]
[1765534106521,2.2,138.28,138.27,0.67]
[1765534107622,2.2,138.28,138.27,5.06405772]
[1765534108496,2.2,138.28,138.27,12.29628452]
[1765534110807,2.2,138.28,138.27,7.9022268]
[1765534111013,2.86,138.28,138.26,7.92]
[1765534111414,10.09176202,138.28,138.26,7.92]
[1765534111615,10.09176202,138.28,138.26,8.59]
[1765534111827,2.2,138.27,138.26,8.59]
[1765534113421,2.2,138.27,138.26,12.98405772]
[1765534114619,2.2,138.27,138.26,15.82274989]
[1765534114804,2.2,138.27,138.26,7.92]
[1765534115005,2.86,138.27,138.26,7.92]
[1765534115526,7.8922268,138.27,138.26,7.92]
[1765534117436,7.8922268,138.27,138.24,7.92]
[1765534117735,0.66,138.26,138.24,7.92]
[1765534118119,0.66,138.26,138.24,8.59]
[1765534118435,7.2322268,138.27,138.24,15.82377052]
[1765534118636,7.8922268,138.27,138.24,15.82377052]
[1765534120008,7.8922268,138.27,138.24,15.15377052]
[1765534120221,7.8922268,138.27,138.24,15.82377052]
[1765534120635,2.2,138.26,138.24,15.82377052]
[1765534120820,2.2,138.26,138.24,20.21782824]
[1765534123358,2.2,138.26,138.24,19.54782824]
[1765534123520,2.2,138.26,138.24,20.21782824]
[1765534123846,2.2,138.26,138.25,5.06405772]
[1765534124329,2.2,138.29,138.25,7.90327305]
[1765534124637,0.66,138.28,138.25,0.67]
[1765534124838,2.2,138.27,138.24,15.15356253]
[1765534125013,2.2,138.27,138.24,8.59]
[1765534125218,2.86,138.27,138.24,8.59]
[1765534125940,7.89284242,138.26,138.24,7.92]
[1765534126437,2.91,138.25,138.24,7.92]
[1765534126631,0.71,138.25,138.24,7.92]
[1765534130538,7.94327305,138.25,138.24,7.92]
[1765534132135,7.23327305,138.25,138.24,7.92]
[1765534132340,7.94327305,138.25,138.24,7.92]
[1765534140771,26.02645569,138.25,138.22,7.92]
[1765534140971,0.71,138.24,138.22,7.92]
[1765534142055,7.94423855,138.24,138.22,7.92]
[1765534142557,0.71,138.23,138.22,7.92]
[1765534143680,7.23423855,138.24,138.22,8.61]
[1765534143879,7.94423855,138.24,138.22,8.61]
[1765534144088,25.31310829,138.27,138.23,3.50413387]
[1765534144272,25.31310829,138.27,138.24,2.81413387]
[1765534144273,7.2322268,138.27,138.24,2.81413387]
[1765534144584,2.2,138.26,138.25,8.61]
[1765534145681,2.2,138.26,138.25,11.42413387]
[1765534146768,2.2,138.26,138.25,8.61]
[1765534146965,2.2,138.26,138.25,7.92]
[1765534147171,10.14274989,138.26,138.25,7.92]
[1765534147371,7.94274989,138.26,138.25,7.92]
[1765534149161,7.23237532,138.27,138.25,8.61]
[1765534149469,18.79000863,138.28,138.25,8.61]
[1765534149470,7.23190379,138.28,138.26,0.69]
[1765534149669,2.2,138.27,138.26,0.69]
[1765534150589,2.2,138.27,138.25,11.42413387]
[1765534152697,2.2,138.27,138.25,17.96720099]
[1765534152871,2.2,138.27,138.26,3.50413387]
[1765534153271,9.4313973,138.29,138.26,3.50413387]
[1765534153478,9.4313973,138.29,138.27,0.69]
[1765534153690,9.4313973,138.29,138.28,7.92]
[1765534154399,2.2,138.29,138.28,7.92]
[1765534155192,9.43118085,138.29,138.28,7.92]
[1765534156604,10.12118085,138.29,138.28,7.92]
[1765534157008,10.12118085,138.29,138.26,7.92]
[1765534157214,0.69,138.28,138.26,7.92]
[1765534157594,0.69,138.28,138.26,8.61]
[1765534158918,7.92209492,138.28,138.26,7.92]
[1765534159294,2.2,138.27,138.26,8.61]
[1765534163192,2.2,138.27,138.26,18.65534037]
[1765534164107,2.2,138.27,138.26,7.92]
[1765534164295,2.2,138.27,138.26,8.61]
[1765534164708,2.2,138.27,138.26,11.42259048]
[1765534164913,2.2,138.27,138.26,18.65534037]
[1765534168115,9.43067104,138.3,138.26,18.65534037]
[1765534168313,10.12067104,138.3,138.28,2.81259048]
[1765534168514,10.12067104,138.3,138.29,7.92]
[1765534168806,7.92067104,138.3,138.29,7.92]
[1765534181050,7.23033282,138.31,138.29,8.61]
[1765534181362,7.23033282,138.31,138.29,7.92]
[1765534181558,7.23033282,138.31,138.29,8.61]
[1765534181761,7.92033282,138.31,138.29,8.61]
[1765534182070,0.69,138.3,138.29,7.92]
[1765534182361,7.22924844,138.33,138.3,0.69]
[1765534182565,0.69,138.33,138.3,0.69]
[1765534182863,0.69,138.33,138.3,3.50259048]
[1765534183059,7.91879914,138.34,138.3,3.50259048]
[1765534183361,7.91879914,138.34,138.31,0.69]
[1765534184142,7.22879914,138.34,138.31,0.69]
[1765534184342,0.69,138.33,138.3,10.04321633]
[1765534184561,0.69,138.33,138.3,7.92062585]
[1765534186467,7.91910304,138.33,138.3,7.92062585]
[1765534187870,0.66,138.32,138.3,10.73321633]
[1765534188368,0.66,138.33,138.3,10.73321633]
[1765534188665,0.66,138.33,138.3,7.92062585]
[1765534189644,7.88919847,138.33,138.3,7.92062585]
[1765534190871,7.88919847,138.33,138.31,0.69]
[1765534191058,7.22919847,138.33,138.31,0.69]
[1765534191255,10.08883231,138.34,138.31,0.69]
[1765534191445,10.08883231,138.34,138.32,7.92]
[1765534191646,2.86,138.34,138.32,7.92]
[1765534192063,0.66,138.33,138.32,7.92]
[1765534192370,0.66,138.33,138.3,7.92]
[1765534192569,0.66,138.33,138.3,8.61]
[1765534193068,0.66,138.33,138.3,7.92]
[1765534193365,7.22961249,138.32,138.3,8.61]
[1765534193770,7.88961249,138.32,138.3,8.61]
[1765534196072,0.66,138.31,138.3,7.92]
[1765534196273,0.66,138.31,138.26,13.7370912]
[1765534196473,3.47097331,138.31,138.27,7.92]
[1765534196664,0.66,138.31,138.27,8.61]
[1765534196974,0.66,138.3,138.27,15.842112]
[1765534197656,0.66,138.3,138.27,8.61]
[1765534198063,7.89097321,138.3,138.27,8.61]
[1765534198476,0.66,138.29,138.27,8.61]
[1765534200755,0.66,138.29,138.27,15.84221799]
[1765534200756,2.2,138.28,138.27,15.84221799]
[1765534201781,2.2,138.28,138.27,8.61]
[1765534202083,2.2,138.28,138.27,15.8422268]
[1765534203777,2.2,138.28,138.27,18.65320011]
[1765534204085,2.2,138.28,138.27,20.23458058]
[1765534204463,2.2,138.28,138.27,38.59075593]
[1765534205064,9.42933891,138.33,138.27,56.67132293]
[1765534205266,10.08824804,138.35,138.31,4.39235378]
[1765534205582,0.66,138.34,138.32,7.92]
[1765534206559,7.88867412,138.34,138.32,7.92]
[1765534206860,30.35244614,138.34,138.3,7.92]
[1765534207077,5.05235378,138.33,138.3,7.92]
[1765534207381,4.39235378,138.32,138.3,7.92]
[1765534207565,2.2,138.31,138.28,7.92]
[1765534207880,2.86,138.31,138.28,7.92]
[1765534208088,0.66,138.3,138.28,7.92]
[1765534209869,7.89069291,138.3,138.28,7.92]
[1765534212179,0.66,138.3,138.28,7.92]
[1765534212482,0.66,138.3,138.28,8.61]
[1765534212680,2.2,138.31,138.29,5.08235378]
[1765534213186,2.2,138.31,138.3,0.69]
[1765534214261,2.2,138.31,138.29,11.62325563]
[1765534214463,2.2,138.31,138.29,12.31325563]
[1765534214766,2.2,138.31,138.29,0.69]
[1765534214973,2.86,138.31,138.29,0.69]
[1765534215188,2.2,138.31,138.29,0.69]
[1765534216070,2.2,138.31,138.29,12.31345193]
[1765534216287,2.2,138.31,138.3,4.39235378]
[1765534216465,2.2,138.31,138.3,5.07235378]
[1765534216664,10.12825032,138.35,138.3,5.07235378]
[1765534216969,9.42825032,138.35,138.32,13.0470912]
[1765534217186,9.42825032,138.35,138.32,17.43944498]
[1765534217484,10.08825032,138.35,138.32,18.11944498]
[1765534217662,10.08825032,138.35,138.33,0.68]
[1765534217860,10.08825032,138.35,138.32,18.11944498]
[1765534219695,10.08825032,138.35,138.33,0.68]
[1765534221292,10.08825032,138.35,138.33,7.9089873]
[1765534221293,2.2,138.35,138.33,7.9089873]
[1765534221476,7.88761754,138.36,138.33,7.9089873]
[1765534222089,0.66,138.37,138.34,12.99235378]
[1765534222281,10.18620354,138.39,138.35,0.68]
[1765534222688,0.66,138.38,138.35,0.68]
[1765534222889,0.66,138.38,138.35,5.07235378]
[1765534223066,9.52620354,138.39,138.36,0.68]
[1765534223271,10.18620354,138.39,138.36,0.68]
[1765534223498,10.18620354,138.39,138.36,7.90741454]
[1765534223683,10.18620354,138.39,138.37,7.92]
[1765534224976,2.3,138.39,138.38,0.68]
[1765534225188,2.3,138.39,138.37,15.14686389]
[1765534225376,0.1,138.39,138.37,15.82686389]
[1765534227591,0.1,138.39,138.37,20.21404611]
[1765534227808,0.1,138.39,138.38,5.06718222]
[1765534229107,0.1,138.39,138.38,7.90647781]
[1765534229303,0.1,138.39,138.38,15.18560956]
[1765534229499,0.1,138.39,138.38,12.29366003]
[1765534229689,0.1,138.39,138.38,7.90647781]
[1765534229886,0.1,138.39,138.38,11.61366003]
[1765534230090,0.1,138.39,138.38,12.29366003]
[1765534230292,0.1,138.39,138.38,15.18560956]
[1765534230491,0.1,138.39,138.38,7.90647781]